bitfinex/quotes_BTCUSD_20250127
["timestamp","ask_amount","ask_price","bid_price","bid_amount"]
[1737958521111,0.55687733,100270.0,100260.0,0.01167125]
[1737958521319,0.57987733,100270.0,100260.0,0.01167125]
[1737958523256,0.57987733,100270.0,100260.0,0.01115167]
[1737958524547,0.61982133,100270.0,100260.0,0.01115167]
[1737958525114,0.68835587,100270.0,100260.0,0.01115167]
[1737958525319,0.81283357,100270.0,100260.0,0.01115167]
[1737958525699,1.31027357,100270.0,100260.0,0.01115167]
[1737958526128,1.11299587,100270.0,100260.0,0.01115167]
[1737958526891,1.11399587,100270.0,100260.0,0.01115167]
[1737958527103,1.12099587,100270.0,100260.0,0.01115167]
[1737958527317,1.34347357,100270.0,100260.0,0.01115167]
[1737958527519,1.22099587,100270.0,100260.0,0.01115167]
[1737958528285,1.44547357,100270.0,100260.0,0.01115167]
[1737958528860,1.45547357,100270.0,100260.0,0.01115167]
[1737958529302,1.43847357,100270.0,100260.0,0.01115167]
[1737958529858,1.44547357,100270.0,100260.0,0.01115167]
[1737958530042,1.44347357,100270.0,100260.0,0.01115167]
[1737958530440,1.32099587,100270.0,100260.0,0.01115167]
[1737958530880,1.31899587,100270.0,100260.0,0.01115167]
[1737958531218,1.32099587,100270.0,100260.0,0.01115167]
[1737958532715,1.54547357,100270.0,100260.0,0.01115167]
[1737958533321,1.44547357,100270.0,100260.0,0.01115167]
[1737958533478,1.53417357,100270.0,100260.0,0.01068405]
[1737958534656,1.55417357,100270.0,100260.0,0.01068405]
[1737958534864,1.60367357,100270.0,100260.0,0.01068405]
[1737958535070,4.50937357,100270.0,100260.0,0.01068405]
[1737958535294,4.36927357,100270.0,100260.0,0.01068405]
[1737958535468,4.12027357,100270.0,100260.0,0.01068405]
[1737958535873,2.98967357,100270.0,100260.0,0.01068405]
[1737958536080,2.48697357,100270.0,100260.0,0.01068405]
[1737958536293,2.52976357,100270.0,100260.0,0.01068405]
[1737958536426,2.99335677,100270.0,100260.0,0.01068405]
[1737958536628,2.99335677,100270.0,100260.0,0.00568405]
[1737958537492,2.96835677,100270.0,100260.0,0.00568405]
[1737958537722,2.99907733,100270.0,100260.0,5e-08]
[1737958537941,2.11377733,100270.0,100260.0,5e-08]
[1737958538153,3.643001,100260.0,100250.0,0.00010165]
[1737958538371,4.95965154,100260.0,100250.0,0.00010165]
[1737958538649,0.27267,100220.0,100210.0,0.0002016]
[1737958538852,0.48992758,100220.0,100210.0,0.0002016]
[1737958539061,0.52722758,100220.0,100210.0,0.0002016]
[1737958539264,0.53064177,100220.0,100210.0,0.0002016]
[1737958539679,0.69918177,100220.0,100210.0,0.0002016]
[1737958539902,0.57927148,100220.0,100210.0,0.00035027]
[1737958540117,0.05925419,100220.0,100210.0,0.22913527]
[1737958540348,0.02195419,100220.0,100210.0,0.27643527]
[1737958540761,0.03195419,100220.0,100210.0,0.27643527]
[1737958540966,0.02295419,100220.0,100210.0,0.27643527]
[1737958541183,0.02195419,100220.0,100210.0,0.39634556]
[1737958541389,0.02195419,100220.0,100210.0,0.27643527]
[1737958541594,0.11930148,100220.0,100210.0,0.27743527]
[1737958542645,0.02195419,100220.0,100210.0,0.27743527]
[1737958542853,0.11930148,100220.0,100210.0,0.27743527]
[1737958543312,0.12130148,100220.0,100210.0,0.27743527]
[1737958543515,0.11930148,100220.0,100210.0,0.19691441]
[1737958543729,0.149685,100210.0,100200.0,0.15971143]
[1737958543938,0.149685,100210.0,100200.0,0.1498416]
[1737958543939,0.24734729,100210.0,100200.0,0.1498416]
[1737958544156,0.24734729,100210.0,100200.0,0.0001416]
[1737958544157,0.39703229,100210.0,100200.0,0.0001416]
[1737958544314,0.41895032,100210.0,100200.0,0.0001416]
[1737958544742,0.44195032,100210.0,100200.0,0.0001416]
[1737958545152,0.47925032,100210.0,100200.0,0.0001416]
[1737958546039,0.47934857,100210.0,100200.0,0.0001416]
[1737958547062,0.47934857,100210.0,100200.0,0.0011416]
[1737958547601,0.45634857,100210.0,100200.0,0.0011416]
[1737958547977,0.47934857,100210.0,100200.0,0.0011416]
[1737958548173,0.47934857,100210.0,100200.0,0.0001416]
[1737958548421,0.47934857,100210.0,100200.0,0.1498416]
[1737958548637,0.48034857,100210.0,100200.0,0.0001416]
[1737958549058,0.45734857,100210.0,100200.0,0.0001416]
[1737958549713,0.31266357,100210.0,100200.0,0.1498416]
[1737958549927,0.06031628,100210.0,100200.0,0.1498416]
[1737958550347,0.05931628,100210.0,100200.0,0.1498416]
[1737958550556,0.06331628,100210.0,100200.0,0.1498416]
[1737958551191,0.05931628,100210.0,100200.0,0.1498416]
[1737958551402,0.02201628,100210.0,100200.0,0.35065189]
[1737958551636,0.02201628,100210.0,100200.0,0.49699918]
[1737958554029,0.02231407,100210.0,100200.0,0.49699918]
[1737958554239,0.02231407,100210.0,100200.0,0.49799918]
[1737958554638,0.02231407,100210.0,100200.0,0.49699918]
[1737958555157,0.02231407,100210.0,100200.0,0.49799918]
[1737958556351,0.02231407,100210.0,100200.0,0.80892275]
[1737958556570,0.02231407,100210.0,100200.0,0.79892275]
[1737958557145,0.02231407,100210.0,100200.0,0.67901246]
[1737958557510,0.02231407,100210.0,100200.0,0.79892275]
[1737958558939,0.02231407,100210.0,100200.0,0.85192275]
[1737958559317,0.15,100250.0,100240.0,0.14964]
[1737958559509,0.37254358,100270.0,100260.0,0.149611]
[1737958559684,0.53718487,100270.0,100260.0,0.149611]
[1737958559863,0.15,100260.0,100250.0,0.199484]
[1737958560664,0.58674864,100270.0,100250.0,0.398973]
[1737958560876,0.38768764,100270.0,100260.0,0.149611]
[1737958561082,0.53728364,100270.0,100260.0,0.149611]
[1737958561936,0.7397351,100270.0,100250.0,0.548586]
[1737958562138,0.5402711,100270.0,100260.0,0.149611]
[1737958562723,0.9392051,100270.0,100250.0,0.349099]
[1737958562948,0.09734729,100260.0,100250.0,0.349099]
[1737958563159,0.80214229,100260.0,100250.0,0.001]
[1737958563331,0.80214229,100260.0,100240.0,0.34915]
[1737958563535,1.00465187,100260.0,100240.0,0.34915]
[1737958563742,0.35036387,100260.0,100250.0,0.149625]
[1737958563939,0.25036387,100260.0,100250.0,0.149625]
[1737958564308,0.25436387,100260.0,100250.0,0.149625]
[1737958565608,0.25036387,100260.0,100250.0,0.149625]
[1737958566010,0.25136387,100260.0,100250.0,0.149625]
[1737958566218,0.25036387,100260.0,100250.0,0.149625]
[1737958566422,0.40097487,100260.0,100250.0,0.149625]
[1737958566626,0.40297487,100260.0,100250.0,0.149625]
[1737958566842,0.40197487,100260.0,100240.0,0.349139]
[1737958567044,0.149625,100250.0,100230.0,0.35893909]
[1737958567250,0.45073754,100250.0,100230.0,0.55846609]
[1737958567449,0.39998865,100250.0,100240.0,0.14964]
[1737958567653,0.59948965,100250.0,100230.0,0.55846909]
[1737958567852,0.25036365,100250.0,100240.0,0.14964]
[1737958568061,0.15301636,100250.0,100240.0,0.14964]
[1737958568661,0.15301636,100250.0,100240.0,0.27054784]
[1737958568662,0.00301636,100250.0,100240.0,0.27054784]
[1737958568869,0.00301636,100250.0,100240.0,0.34605029]
[1737958569073,0.00301636,100250.0,100240.0,0.22614]
[1737958569278,0.00301636,100250.0,100240.0,0.14964]
[1737958569526,0.02155636,100250.0,100240.0,0.15064]
[1737958570643,0.41852865,100250.0,100240.0,0.15164]
[1737958570837,0.26890365,100250.0,100240.0,0.15164]
[1737958571019,0.26890365,100250.0,100240.0,0.15064]
[1737958572229,0.26890365,100250.0,100240.0,0.14964]
[1737958572427,0.26990365,100250.0,100240.0,0.14964]
[1737958572971,0.17255636,100250.0,100240.0,0.14964]
[1737958573200,0.17155636,100250.0,100240.0,0.14964]
[1737958573602,0.17355636,100250.0,100240.0,0.14964]
[1737958574516,0.17355636,100250.0,100240.0,0.15063757]
[1737958574701,0.02355636,100250.0,100240.0,0.26955029]
[1737958574903,0.02355636,100250.0,100240.0,0.14964]
[1737958575122,0.02355636,100250.0,100240.0,0.15063749]
[1737958575484,0.02355636,100250.0,100240.0,0.14964]
[1737958575866,0.02155636,100250.0,100240.0,0.14964]
[1737958576212,0.02255636,100250.0,100240.0,0.15364]
[1737958576413,0.17218136,100250.0,100240.0,0.004]
[1737958576624,0.61424449,100250.0,100240.0,0.004]
[1737958576890,0.72233894,100250.0,100240.0,0.004]
[1737958577099,0.1,100240.0,100220.0,0.149667]
[1737958577306,0.299655,100230.0,100220.0,0.149667]
[1737958577481,0.30267528,100230.0,100220.0,0.149667]
[1737958577710,0.32121528,100230.0,100220.0,0.149667]
[1737958578247,0.17156028,100230.0,100220.0,0.149667]
[1737958578452,0.32121528,100230.0,100220.0,0.149667]
[1737958578704,0.17156028,100230.0,100220.0,0.149667]
[1737958578939,0.32121528,100230.0,100220.0,0.149667]
[1737958579607,0.14967,100220.0,100210.0,0.0889805]
[1737958579814,0.59557487,100220.0,100210.0,0.0889805]
[1737958580019,0.67615323,100220.0,100210.0,0.0889805]
[1737958580430,0.67615323,100220.0,100210.0,0.0001418]
[1737958580639,0.55624294,100220.0,100210.0,0.0001418]
[1737958580856,0.65624294,100220.0,100210.0,0.0001418]
[1737958581064,0.65924294,100220.0,100210.0,0.0021418]
[1737958582336,0.65724294,100220.0,100210.0,0.0021418]
[1737958582720,0.65824294,100220.0,100210.0,0.0001418]
[1737958582943,0.66524294,100220.0,100210.0,0.0001418]
[1737958583180,0.66324294,100220.0,100210.0,0.0001418]
[1737958583343,0.65624294,100220.0,100210.0,0.0001418]
[1737958583547,0.66524294,100220.0,100210.0,0.0001418]
[1737958583935,0.65824294,100220.0,100210.0,0.0001418]
[1737958584139,0.65624294,100220.0,100210.0,0.0001418]
[1737958584349,0.78515323,100220.0,100210.0,0.0001418]
[1737958584459,0.70419374,100220.0,100210.0,0.0001418]
[1737958584688,0.77815323,100220.0,100210.0,0.0001418]
[1737958585323,0.78828548,100220.0,100210.0,0.0001418]
[1737958585931,0.79528548,100220.0,100210.0,0.0001418]
[1737958586165,0.78828548,100220.0,100210.0,0.0001418]
[1737958586466,0.78628548,100220.0,100210.0,0.0001418]
[1737958586669,0.89263277,100220.0,100210.0,0.0001418]
[1737958586866,0.79263277,100220.0,100210.0,0.0001418]
[1737958587095,0.86663277,100220.0,100210.0,0.0001418]
[1737958587297,2.32390177,100220.0,100210.0,0.0001418]
[1737958587502,2.32590177,100220.0,100210.0,0.0001418]
[1737958587707,2.34590177,100220.0,100210.0,0.0001418]
[1737958590145,2.51076177,100220.0,100210.0,0.0001418]
[1737958590349,2.51076177,100220.0,100200.0,0.0001416]
[1737958590350,0.646885,100210.0,100200.0,0.0001416]
[1737958590579,4.03391558,100210.0,100200.0,0.0001416]
[1737958590972,4.09387558,100210.0,100200.0,0.0001416]
[1737958592137,4.09387558,100210.0,100200.0,6e-07]
[1737958592361,1.29307558,100210.0,100200.0,6e-07]
[1737958592603,0.149745,100170.0,100160.0,0.0151897]
[1737958592813,0.5412507,100170.0,100160.0,0.01568547]
[1737958593014,0.69874417,100170.0,100160.0,0.01568547]
[1737958593236,0.78072219,100170.0,100160.0,0.01568547]
[1737958593865,0.78272219,100170.0,100160.0,0.01568547]
[1737958594082,0.78972219,100170.0,100160.0,0.01568547]
[1737958594285,0.78772219,100170.0,100160.0,0.01568547]
[1737958594611,0.80963248,100170.0,100160.0,0.01568547]
[1737958594829,1.28053248,100170.0,100160.0,0.01568547]
[1737958595509,0.89063248,100170.0,100160.0,0.01568547]
[1737958595627,3.40613248,100170.0,100160.0,0.01568547]
[1737958595854,3.28323248,100170.0,100160.0,0.01568547]
[1737958596092,3.24633248,100170.0,100160.0,0.01568547]
[1737958596715,3.12363248,100170.0,100160.0,0.01568547]
[1737958596988,3.19910471,100170.0,100160.0,0.01568547]
[1737958597231,3.55914381,100170.0,100160.0,0.01442047]
[1737958597367,3.60910381,100170.0,100160.0,4.7e-07]
[1737958597650,1.40537997,100170.0,100160.0,4.7e-07]
[1737958597807,1.40337997,100170.0,100160.0,4.7e-07]
[1737958597966,1.41321054,100170.0,100160.0,4.7e-07]
[1737958598169,3.59332,100160.0,100150.0,0.0001016]
[1737958598373,3.99090224,100160.0,100150.0,0.00019985]
[1737958598599,3.98090224,100160.0,100150.0,0.00019985]
[1737958599220,4.70494253,100160.0,100150.0,8.5e-07]
[1737958599421,1.82851869,100160.0,100150.0,8.5e-07]
[1737958599629,0.299835,100110.0,100100.0,0.0001418]
[1737958599829,0.43872229,100110.0,100100.0,0.00029059]
[1737958600082,0.44155569,100110.0,100100.0,0.00029059]
[1737958600827,0.56146598,100110.0,100100.0,0.00029059]
[1737958601029,0.44155569,100110.0,100100.0,0.00029059]
[1737958601359,0.41855569,100110.0,100100.0,0.00029059]
[1737958601561,0.56246598,100110.0,100100.0,0.00029059]
[1737958601772,0.44255569,100110.0,100100.0,0.00029059]
[1737958602428,0.44655569,100110.0,100100.0,0.00029059]
[1737958602810,0.54655569,100110.0,100100.0,0.00029059]
[1737958603028,0.51855569,100110.0,100100.0,0.00029059]
[1737958603352,0.56037685,100110.0,100100.0,0.00029059]
[1737958603564,0.68028714,100110.0,100100.0,0.00029059]
[1737958603883,0.56037685,100110.0,100100.0,0.00029059]
[1737958604209,0.55137685,100110.0,100100.0,0.00029059]
[1737958604423,0.67228714,100110.0,100100.0,0.00029059]
[1737958604627,1.50035615,100110.0,100100.0,0.00029059]
[1737958604840,1.99858615,100110.0,100100.0,0.00029059]
[1737958605041,2.02815838,100110.0,100100.0,0.00029059]
[1737958605246,2.03815838,100110.0,100100.0,0.00029059]
[1737958605869,2.38440458,100110.0,100100.0,0.00029059]
[1737958606084,2.41446126,100110.0,100100.0,0.00029059]
[1737958606299,2.39140458,100110.0,100100.0,0.00029059]
[1737958606509,2.35683235,100110.0,100100.0,0.00029059]
[1737958606930,2.36383235,100110.0,100100.0,0.00029059]
[1737958607121,2.35483235,100110.0,100100.0,0.00029059]
[1737958607346,2.35483235,100110.0,100070.0,6e-05]
[1737958607347,0.42678,100080.0,100070.0,6e-05]
[1737958607562,4.11816947,100080.0,100070.0,0.00055666]
[1737958607876,4.58291954,100080.0,100070.0,0.00055666]
[1737958608077,0.352895,100070.0,100060.0,0.0151897]
[1737958608286,0.352895,100070.0,100040.0,0.0885551]
[1737958608287,0.231,100050.0,100040.0,0.0885551]
[1737958608543,4.23093768,100050.0,100040.0,0.0380818]
[1737958608746,4.23093768,100050.0,100020.0,4.069e-05]
[1737958608747,0.299955,100030.0,100020.0,4.069e-05]
[1737958608948,4.03617715,100030.0,100020.0,4.069e-05]
[1737958609454,4.52801305,100030.0,100020.0,4.069e-05]
[1737958609690,4.53813305,100030.0,100020.0,4.069e-05]
[1737958609907,0.84930319,100030.0,100020.0,0.15001069]
[1737958610130,1.00625819,100030.0,100020.0,0.00018951]
[1737958610316,1.00625819,100030.0,100020.0,0.15015951]
[1737958610317,0.75630319,100030.0,100020.0,0.15015951]
[1737958610548,0.85630319,100030.0,100020.0,0.15015951]
[1737958610758,0.89925819,100030.0,100020.0,0.00018951]
[1737958610975,2.62338005,100030.0,100020.0,0.00018951]
[1737958611158,2.96579368,100030.0,100020.0,0.00018951]
[1737958611364,0.299985,100010.0,100000.0,0.03044]
[1737958611574,2.44331045,100010.0,100000.0,0.03058868]
[1737958611790,1.39808983,100010.0,100000.0,0.03058868]
[1737958612024,1.43512967,100010.0,100000.0,0.03058868]
[1737958612246,1.79587207,100010.0,100000.0,0.03058868]
[1737958612493,1.44524967,100010.0,100000.0,0.03058868]
[1737958612724,1.54204967,100010.0,100000.0,0.03058868]
[1737958612920,1.76779783,100010.0,100000.0,0.03058868]
[1737958613238,2.11847613,100010.0,100000.0,0.03058868]
[1737958613382,1.89672797,100010.0,100000.0,0.03058868]
[1737958613557,1.60312967,100010.0,100000.0,0.03058868]
[1737958613763,1.59912967,100010.0,100000.0,0.03058868]
[1737958613968,1.83187783,100010.0,100000.0,0.03058868]
[1737958614172,2.17247423,100010.0,100000.0,0.03058868]
[1737958614376,0.350013,99991.0,99990.0,0.0001418]
[1737958614572,0.250055,99963.0,99940.0,7e-05]
[1737958614878,0.84946438,99963.0,99962.0,0.01568655]
[1737958615300,0.94946438,99963.0,99962.0,0.01568655]
[1737958616164,0.91946438,99963.0,99962.0,0.01568655]
[1737958616366,0.92948776,99963.0,99962.0,0.01568655]
[1737958617004,0.92948776,99963.0,99962.0,0.01868655]
[1737958617300,0.69940938,99963.0,99962.0,0.01868655]
[1737958617505,0.69940938,99963.0,99962.0,0.16574355]
[1737958617506,0.59940938,99963.0,99962.0,0.16574355]
[1737958617731,0.60240938,99963.0,99962.0,0.16574355]
[1737958617930,0.60240938,99963.0,99962.0,0.01568655]
[1737958618141,0.60240938,99963.0,99962.0,0.16574355]
[1737958618381,0.59940938,99963.0,99962.0,0.01568655]
[1737958618674,0.74946438,99963.0,99962.0,0.01568655]
[1737958618878,0.60640938,99963.0,99962.0,0.01568655]
[1737958619104,0.63947438,99963.0,99962.0,0.16574355]
[1737958619337,0.63947438,99963.0,99962.0,0.01568655]
[1737958619539,0.85447682,99963.0,99962.0,0.01568655]
[1737958619749,0.63947438,99963.0,99962.0,0.01568655]
[1737958619952,0.50206209,99963.0,99962.0,0.16574355]
[1737958620370,0.50206209,99963.0,99962.0,0.25164927]
[1737958620592,0.50206209,99963.0,99962.0,0.29994927]
[1737958620793,0.49923,99963.0,99962.0,0.28914355]
[1737958621233,0.50222706,99963.0,99962.0,0.29114355]
[1737958621446,0.1,100020.0,100000.0,0.15]
[1737958621657,0.23739129,100020.0,100010.0,0.149985]
[1737958621852,0.09734729,100020.0,100010.0,0.149985]
[1737958622056,0.12454729,100020.0,100010.0,0.149985]
[1737958622508,0.27577314,100020.0,100000.0,0.349999]
[1737958622699,0.0272,100020.0,100010.0,0.149985]
[1737958622917,0.2391518,100050.0,100030.0,0.349879]
[1737958623121,0.09734729,100040.0,100030.0,0.149952]
[1737958623315,0.27933127,100050.0,100030.0,0.349891]
[1737958623449,0.24729029,100040.0,100020.0,0.149965]
[1737958623668,0.12933127,100050.0,100040.0,0.14994]
[1737958623895,0.08930027,100050.0,100040.0,0.14994]
[1737958624105,0.08930027,100050.0,100040.0,0.15093947]
[1737958624300,0.08930027,100050.0,100040.0,0.24728729]
[1737958624508,0.08930027,100050.0,100040.0,0.38304]
[1737958624838,0.00014847,100050.0,100040.0,0.38304]
[1737958625294,0.00914847,100050.0,100040.0,0.38304]
[1737958625617,0.00014847,100050.0,100040.0,0.23304]
[1737958625818,0.00214847,100050.0,100040.0,0.23304]
[1737958626232,0.00014847,100050.0,100040.0,0.23304]
[1737958626433,0.09749576,100050.0,100040.0,0.14994]
[1737958626622,0.09849576,100050.0,100040.0,0.14994]
[1737958626825,0.00014847,100050.0,100040.0,0.14994]
[1737958627108,0.00014847,100050.0,100040.0,0.15093946]
[1737958627498,0.00014847,100050.0,100040.0,0.25828675]
[1737958627652,0.00114847,100050.0,100040.0,0.49038729]
[1737958627851,0.01854,100080.0,100070.0,0.149895]
[1737958628053,0.00029821,100110.0,100100.0,0.14985]
[1737958628252,0.00044708,100110.0,100100.0,0.14985]
[1737958628754,0.00044708,100110.0,100100.0,0.39719729]
[1737958628953,0.00029779,100130.0,100120.0,0.14982]
[1737958629147,0.00029779,100130.0,100120.0,0.30376589]
[1737958629359,1.01718326,100180.0,100150.0,0.149775]
[1737958629559,0.76488255,100180.0,100150.0,0.349474]
[1737958629775,0.09749611,100170.0,100150.0,0.149775]
[1737958629975,0.09749611,100170.0,100150.0,0.349475]
[1737958630178,0.24724111,100170.0,100150.0,0.349475]
[1737958630386,0.24724111,100170.0,100150.0,0.149775]
[1737958630774,0.31780026,100160.0,100130.0,0.349543]
[1737958630981,0.09734729,100150.0,100130.0,0.349534]
[1737958631187,0.149813,100130.0,100110.0,0.149833]
[1737958631391,0.56496855,100120.0,100100.0,0.149845]
[1737958631585,0.56496855,100120.0,100100.0,0.349644]
[1737958631787,0.41514755,100120.0,100100.0,0.349644]
[1737958631943,0.41514755,100120.0,100100.0,0.199799]
[1737958631944,0.09734729,100120.0,100100.0,0.199799]
[1737958632148,0.24716929,100120.0,100100.0,0.349638]
[1737958632547,0.27016929,100120.0,100110.0,0.003]
[1737958632735,0.37263,100110.0,100080.0,0.399652]
[1737958632938,0.37263,100110.0,100090.0,0.35067107]
[1737958632939,0.12034729,100110.0,100090.0,0.35067107]
[1737958633135,0.27018229,100110.0,100100.0,0.003]
[1737958633440,0.27018229,100110.0,100090.0,0.149854]
[1737958633638,0.27018229,100110.0,100090.0,0.349674]
[1737958633866,0.12034729,100110.0,100100.0,0.14985]
[1737958634072,0.12034729,100110.0,100090.0,0.349658]
[1737958634270,0.76740426,100120.0,100090.0,0.349658]
[1737958634522,1.06452555,100120.0,100090.0,0.549462]
[1737958634863,0.001,100110.0,100090.0,0.549462]
[1737958635138,0.001,100110.0,100090.0,0.349658]
[1737958635300,0.001,100110.0,100100.0,0.14985]
[1737958635824,0.44796529,100110.0,100090.0,0.349658]
[1737958636223,0.00264265,100100.0,100090.0,0.349658]
[1737958636550,0.00264265,100100.0,100080.0,0.00014887]
[1737958636747,0.149865,100090.0,100080.0,0.15014887]
[1737958637264,0.15248494,100090.0,100080.0,0.15014887]
[1737958638915,0.00261994,100090.0,100080.0,0.15014887]
[1737958639112,0.00361994,100090.0,100080.0,0.15014887]
[1737958639322,0.1537823,100090.0,100080.0,0.15014887]
[1737958639906,0.1527823,100090.0,100080.0,0.15014887]
[1737958640077,0.1527823,100090.0,100080.0,0.15214887]
[1737958640078,0.2527823,100090.0,100080.0,0.15214887]
[1737958640282,0.37312959,100090.0,100080.0,0.15214887]
[1737958640497,0.37312959,100090.0,100080.0,0.15014887]
[1737958640691,0.37312959,100090.0,100080.0,0.00014887]
[1737958640935,0.37312959,100090.0,100080.0,0.00114887]
[1737958641315,0.12326459,100090.0,100080.0,0.00114887]
[1737958641514,0.12726459,100090.0,100080.0,0.15102887]
[1737958641795,0.0029173,100090.0,100080.0,0.00014887]
[1737958641993,0.1527823,100090.0,100080.0,0.00014887]
[1737958642191,0.38337851,100090.0,100080.0,0.00014887]
[1737958642460,0.47312959,100090.0,100080.0,0.00014887]
[1737958642804,0.38012959,100090.0,100080.0,0.00014887]
[1737958643007,0.37047688,100090.0,100080.0,0.00014887]
[1737958643201,0.27312959,100090.0,100080.0,0.00014887]
[1737958643447,0.27512959,100090.0,100080.0,0.00014887]
[1737958643856,0.27312959,100090.0,100080.0,0.00014887]
[1737958644251,0.27412959,100090.0,100080.0,0.00014887]
[1737958644497,0.37412959,100090.0,100080.0,0.00014887]
[1737958644658,0.47847688,100090.0,100080.0,0.00014887]
[1737958644836,0.47747688,100090.0,100080.0,0.00014887]
[1737958645049,0.47047688,100090.0,100080.0,0.00014887]
[1737958645271,0.47347688,100090.0,100080.0,0.00014887]
[1737958645640,0.38512959,100090.0,100080.0,0.00014887]
[1737958645826,0.123,100080.0,100050.0,0.1474843]
[1737958645964,0.1,100040.0,100020.0,0.397719]
[1737958646166,0.1,100040.0,100020.0,0.39771]
[1737958646398,0.00252857,100030.0,100020.0,0.197763]
[1737958646741,0.96750026,100060.0,100030.0,0.349881]
[1737958646948,0.15,100050.0,100030.0,0.349881]
[1737958647151,0.337225,100050.0,100030.0,0.149947]
[1737958647359,0.0373,100050.0,100030.0,0.35038236]
[1737958647768,0.0373,100050.0,100030.0,0.55031036]
[1737958647981,0.001,100040.0,100030.0,0.15044336]
[1737958648185,0.0373,100050.0,100030.0,0.15144288]
[1737958648388,0.187225,100050.0,100030.0,0.55130888]
[1737958648592,0.189226,100050.0,100030.0,0.35137088]
[1737958648973,0.187226,100050.0,100030.0,0.15144288]
[1737958649196,0.15194,100040.0,100030.0,0.00049636]
[1737958649611,0.14994,100040.0,100030.0,0.00049636]
[1737958650038,0.14994,100040.0,100030.0,0.00149636]
[1737958650382,0.56633707,100040.0,100030.0,0.00049636]
[1737958650615,0.86003606,100040.0,100030.0,0.00049636]
[1737958650825,1.01213606,100040.0,100030.0,0.00249636]
[1737958651236,0.96962001,100040.0,100030.0,0.00249636]
[1737958651434,0.92182001,100040.0,100030.0,0.00249636]
[1737958651648,0.92282001,100040.0,100030.0,0.00063776]
[1737958651869,0.92182001,100040.0,100030.0,0.00063776]
[1737958652082,0.93082001,100040.0,100030.0,0.00063776]
[1737958652490,0.92182001,100040.0,100030.0,0.00063776]
[1737958652721,0.93082001,100040.0,100030.0,0.00063776]
[1737958653566,0.93482001,100040.0,100030.0,0.00063776]
[1737958653771,1.00046342,100040.0,100030.0,0.00063776]
[1737958653976,0.93482001,100040.0,100030.0,0.00063776]
[1737958654183,0.93082001,100040.0,100030.0,0.00063776]
[1737958654381,0.93282001,100040.0,100030.0,0.00063776]
[1737958654580,3.67044277,100040.0,100030.0,0.00063776]
[1737958654785,3.77714277,100040.0,100030.0,0.00063776]
[1737958655042,3.88349006,100040.0,100030.0,0.00063776]
[1737958655249,3.8723393,100040.0,100030.0,0.00063776]
[1737958655421,0.9337106,100040.0,100030.0,0.00063776]
[1737958655637,1.7315106,100040.0,100030.0,0.00063776]
[1737958655833,1.7225106,100040.0,100030.0,0.00063776]
[1737958656358,1.7315106,100040.0,100030.0,0.00063776]
[1737958656582,1.63416331,100040.0,100030.0,0.00063776]
[1737958656808,1.63395394,100040.0,100030.0,0.00063776]
[1737958657013,1.01775394,100040.0,100030.0,0.00063776]
[1737958657219,0.7821047,100040.0,100030.0,0.00063776]
[1737958657424,0.84620769,100040.0,100030.0,0.00063776]
[1737958657627,0.84120769,100040.0,100030.0,0.00063776]
[1737958657843,0.83220769,100040.0,100030.0,0.00063776]
[1737958658050,0.93620769,100040.0,100030.0,0.00063776]
[1737958658259,3.85160769,100040.0,100030.0,0.00063776]
[1737958658463,3.88153639,100040.0,100030.0,0.00063776]
[1737958658680,3.88153639,100040.0,100030.0,7.6e-07]
[1737958658887,1.03733639,100040.0,100030.0,7.6e-07]
[1737958659553,0.150043,99971.0,99970.0,0.0001416]
[1737958659762,0.150043,99971.0,99970.0,0.00029007]
[1737958659763,0.24739029,99971.0,99970.0,0.00029007]
[1737958659965,0.28706699,99971.0,99970.0,0.00029007]
[1737958660164,0.28696699,99971.0,99970.0,0.00029007]
[1737958660621,0.24966699,99971.0,99970.0,0.00029007]
[1737958660785,0.1523197,99971.0,99970.0,0.00029007]
[1737958660944,0.19972399,99971.0,99970.0,0.00029007]
[1737958661154,0.48500396,99971.0,99970.0,0.00029007]
[1737958661355,0.45076699,99971.0,99970.0,0.00029007]
[1737958661653,0.45976699,99971.0,99970.0,0.00029007]
[1737958661854,0.45876699,99971.0,99970.0,0.00029007]
[1737958662039,0.44976699,99971.0,99970.0,0.00029007]
[1737958662245,0.45176699,99971.0,99970.0,0.00029007]
[1737958662494,0.36076699,99971.0,99970.0,0.00029007]
[1737958662642,0.408846,99971.0,99970.0,0.00029007]
[1737958662837,1.81106699,99971.0,99970.0,0.00029007]
[1737958663060,1.40759699,99971.0,99970.0,0.00029007]
[1737958663306,0.86059699,99971.0,99970.0,0.00029007]
[1737958663482,0.85859699,99971.0,99970.0,0.00029007]
[1737958663688,0.75622029,99971.0,99970.0,0.00029007]
[1737958663886,0.51083,99971.0,99970.0,0.00029007]
[1737958664142,0.51083,99971.0,99970.0,0.15033507]
[1737958664325,0.50883,99971.0,99970.0,0.36968236]
[1737958664529,0.00648096,99971.0,99970.0,0.39968236]
[1737958664731,0.1,100020.0,100000.0,0.199998]
[1737958664933,0.249956,100030.0,100010.0,0.149985]
[1737958664934,0.349901,100030.0,100010.0,0.149985]
[1737958665155,0.0272,100030.0,100020.0,0.149969]
[1737958665286,0.0272,100030.0,100020.0,0.25831599]
[1737958665519,0.00029715,100050.0,100040.0,0.14994]
[1737958666744,0.00029715,100050.0,100040.0,0.24828676]
[1737958666950,0.00029715,100050.0,100040.0,0.25728729]
[1737958667151,0.00029715,100050.0,100040.0,0.27728729]
[1737958667356,0.00029715,100050.0,100040.0,0.29518923]
[1737958668204,0.00029715,100050.0,100040.0,0.29718923]
[1737958668411,0.00549649,100050.0,100040.0,0.29718923]
[1737958668615,0.00249649,100050.0,100040.0,0.29718923]
[1737958668821,0.00249649,100050.0,100040.0,0.32583487]
[1737958669020,0.00249649,100050.0,100040.0,0.31561895]
[1737958669244,0.00249649,100050.0,100040.0,0.33561895]
[1737958669451,0.00249649,100050.0,100040.0,0.8038039]
[1737958669626,1.46176549,100050.0,100040.0,0.8038039]
[1737958669836,1.45956615,100050.0,100040.0,0.8038039]
[1737958670077,1.28380924,100050.0,100040.0,0.8038039]
[1737958670350,1.0237656,100050.0,100040.0,1.4414839]
[1737958670563,0.07279694,100130.0,100120.0,0.14982]
[1737958670770,0.02329694,100130.0,100120.0,0.14982]
[1737958670972,0.0237933,100130.0,100120.0,0.14982]
[1737958671580,0.0237933,100130.0,100120.0,0.16772194]
[1737958671726,0.27219392,100130.0,100120.0,0.01790194]
[1737958671941,0.37094559,100130.0,100120.0,0.01790194]
[1737958672579,0.37694559,100130.0,100120.0,0.01890194]
[1737958672712,0.0297933,100130.0,100120.0,0.16872194]
[1737958672920,0.0297933,100130.0,100120.0,0.14982]
[1737958673142,0.0387933,100130.0,100120.0,0.25816729]
[1737958673793,0.0387933,100130.0,100120.0,0.27606923]
[1737958674249,0.0397933,100130.0,100120.0,0.27606923]
[1737958674835,0.0247933,100130.0,100120.0,0.16772194]
[1737958675028,0.02701414,100130.0,100120.0,0.16772194]